Cogmind - Beta 10.1 @@@ ROGUE MODE // 2020.11.03 @ 14:04:48 Player: Demise Result: Destroyed by S-10 Pest with Light Assault Rifle Performance ------------- Evolutions (1) 500 Regions Visited (6) 1200 Robots Destroyed (66) 330 Value Destroyed (1567) 1567 Prototype IDs (0) 0 Alien Tech Used (0) 0 Bonus (-138) -138 TOTAL SCORE: 3459 Bonus ------- Friendly Fire -138 Cogmind --------- Core Integrity 0/400 Matter 240/300 Energy 265/265 System Corruption 1% Temperature Cool (0) Movement Treading (200) Ox2 Location -8/Mines Parts ------- > --- POWER (1) -------- Improved Ion Engine > --- PROPULSION (2) --- Light Treads Light Treads > --- UTILITY (4) ------ Improved Heat Sink Humpback Core Shielding > --- WEAPON (2) ------- Heavy Assault Rifle Mini Grenade Launcher > --- INVENTORY (24) --- Improved Ion Engine Light Treads Large Storage Unit Large Storage Unit Large Storage Unit Humpback High-capacity Battery (400) High-capacity Matter Pod (200) Improved Sensor Array Signal Interpreter Targeting Computer Medium Armor Plating Hardened Light Armor Plating Sensor Drone Bay Heavy Assault Rifle Heavy Assault Rifle Heavy Assault Rifle Mining Laser Plasma Cutter Peak State ------------ > --- POWER ------------ Improved Ion Engine > --- PROPULSION ------- Light Treads Light Treads > --- UTILITY ---------- Improved Heat Sink Large Storage Unit Large Storage Unit Hardened Light Armor Plating > --- WEAPON ----------- Heavy Assault Rifle Heavy Assault Rifle > --- INVENTORY -------- Light Treads Light Treads Large Storage Unit High-capacity Battery Medium Matter Pod Visual Processing Unit Improved Sensor Array Signal Interpreter Core Shielding Medium Armor Plating Heavy Assault Rifle Heavy Assault Rifle Heavy Assault Rifle Mini Grenade Launcher Mining Laser Plasma Cutter [Rating: 17] Favorites ----------- Power Improved Ion Engine Engine Improved Ion Engine Propulsion Light Treads Treads Light Treads Leg Aluminum Leg Utility Large Storage Unit Device Improved Heat Sink Storage Large Storage Unit Protection Core Shielding Weapon Heavy Assault Rifle Energy Gun Medium Laser Ballistic Gun Heavy Assault Rifle Launcher Mini Grenade Launcher Special Weapon Mining Laser Build | -11 -10 -10 -9 -9 -9 -8 ------- Run | Scr Mat Min Mat Min Exi Min Slots Evolved 2 | . . . 2 . . . Power . | . . . . . . . Propulsion . | . . . . . . . Utility 2 | . . . 2 . . . Weapon . | . . . . . . . Parts Attached 61 | 1 8 4 33 11 3 1 Power 8 | . 1 1 4 2 . . Engine 8 | . 1 1 4 2 . . Core . | . . . . . . . Reactor . | . . . . . . . Propulsion 11 | . 2 1 6 2 . . Treads 11 | . 2 1 6 2 . . Leg . | . . . . . . . Wheel . | . . . . . . . Hover . | . . . . . . . Flight . | . . . . . . . Utility 16 | 1 2 . 7 3 3 . Device 2 | . . . 1 . 1 . Storage 5 | 1 2 . 1 . 1 . Processor . | . . . . . . . Hackware . | . . . . . . . Protection 9 | . . . 5 3 1 . Artifact . | . . . . . . . Weapon 26 | . 3 2 16 4 . 1 Energy Gun 13 | . 3 2 8 . . . Energy Cannon . | . . . . . . . Ballistic Gun 10 | . . . 7 3 . . Ballistic Cannon . | . . . . . . . Launcher 2 | . . . . 1 . 1 Special Weapon 1 | . . . 1 . . . Impact Weapon . | . . . . . . . Slashing Weapon . | . . . . . . . Piercing Weapon . | . . . . . . . Special Melee Weapon . | . . . . . . . Unidentified Prototypes . | . . . . . . . Parts Lost 16 | . 1 2 9 4 . . Power 2 | . . . 1 1 . . Propulsion 3 | . . 1 1 1 . . Utility 2 | . . . 1 1 . . Weapon 9 | . 1 1 6 1 . . Highest Loss Streak 4 | . 1 1 3 4 . . Average Slot Usage (%) 98 | . 99 99 98 98 92 88 Engine 12 | . 14 14 10 10 11 11 Treads 24 | . 27 28 22 22 22 22 Device 6 | . . . 10 11 10 11 Storage 23 | . 27 28 22 22 16 11 Protection 6 | . . . 10 10 10 11 Energy Gun 12 | . 14 27 12 . . . Ballistic Gun 11 | . 13 . 9 21 22 22 Naked Turns . | . . . . . . . Heaviest Build 125 | 13 41 42 49 51 125 95 Greatest Support 40 | 20 40 40 40 40 40 40 Greatest Overweight (x) 3 | . 1 1 1 1 3 2 Average Overweight (x) . | . . . . . 1 2 Largest Inventory Capacity 36 | 6 16 16 16 16 36 24 Average Capacity 15 | 6 14 16 16 16 20 24 Most Carried 20 | 6 16 16 16 16 20 20 Average Carried 14 | 6 12 15 15 15 18 20 Final Capacity 24 | 6 16 16 16 16 24 24 Final Carried 20 | 6 16 16 16 16 20 20 Class Distribution -------------------- 50% | Mutant 49% | Scavenger-Mutant Dominant Class ---------------- Mutant | -10/Materials Mutant | -10/Mines Scavenger-Mutant | -9/Materials Scavenger-Mutant | -9/Mines Scavenger-Mutant | -9/Exiles Scavenger-Mutant | -8/Mines Resources | -11 -10 -10 -9 -9 -9 -8 ----------- Run | Scr Mat Min Mat Min Exi Min Matter Collected 1234 | 271 209 40 484 230 . . Remotely . | . . . . . . . Salvage Created 2166 | 160 465 220 1103 163 . 55 Parts 139 | 13 28 12 65 13 . 8 Haulers Intercepted 3 | . 2 . 1 . . . Recyclers Shooed 3 | 1 . . 2 . . . Parts Field Recycled . | . . . . . . . Retrieved Matter . | . . . . . . . Parts Self-Destructed . | . . . . . . . Prevented . | . . . . . . . Kills | -11 -10 -10 -9 -9 -9 -8 ------- Run | Scr Mat Min Mat Min Exi Min Combat Hostiles Destroyed 46 | . 10 4 21 9 . 2 Guns 41 | . 10 4 21 6 . . AOE 5 | . . . . 3 . 2 Classes Destroyed 8 | 3 4 . 1 . . . Worker 4 | 2 . . 2 . . . Tunneler 6 | 4 . 2 . . . . Hauler 3 | . 2 . 1 . . . Recycler 1 | 1 . . . . . . Watcher 5 | . 2 . 3 . . . Swarmer 14 | . 3 . 2 7 . 2 Grunt 22 | . 7 4 11 . . . Sentry 10 | . . . 8 2 . . Thug 1 | . . . . . . 1 Best Kill Streak 5 | 5 4 2 3 4 . 2 Combat Bots Only 4 | . 3 2 3 4 . 2 Max Kills in Single Turn 2 | 1 1 2 1 2 . 2 Gunslinging . | . . . . . . . Exploded 2 | . . . . 2 . 2 Melee . | . . . . . . . Uniques/NPCs Destroyed . | . . . . . . . Combat | -11 -10 -10 -9 -9 -9 -8 -------- Run | Scr Mat Min Mat Min Exi Min Damage Taken 3088 | . 506 265 1803 454 . 60 Core 524 | . 72 46 313 77 . 16 Absorbed by Shields . | . . . . . . . Core Remaining (%) 76 | 100 . 52 . . . . Volleys Fired 215 | 26 39 14 116 18 . 2 Largest 2 | 2 2 2 2 2 . 1 Hottest 115 | 70 70 115 115 79 . 30 Shots Fired 414 | 52 78 27 222 33 . 2 Gun 407 | 52 78 27 219 31 . . Cannon . | . . . . . . . Launcher 4 | . . . . 2 . 2 Special 3 | . . . 3 . . . Kinetic 213 | 26 39 . 117 31 . . Thermal 197 | 26 39 27 105 . . . Explosive 4 | . . . . 2 . 2 Electromagnetic . | . . . . . . . Robot Hit Streak 24 | 6 9 14 24 12 . . Robot Miss Streak 4 | 3 3 1 4 2 . . Penetration Max . | . . . . . . . Secondary Targets 4 | . . . 2 2 . . Max Gunslinging Chain 1 | . . . 1 1 . . Shots Hit Robots 300 | 32 56 23 164 25 . . Core Hits 116 | 9 28 12 51 11 . 5 Critical Hits 3 | 1 . . 1 1 . . Critical Kills 1 | 1 . . . . . . Critical Parts Destroyed 2 | . . . 1 1 . . Melee Attacks . | . . . . . . . Impact . | . . . . . . . Slashing . | . . . . . . . Piercing . | . . . . . . . Sneak Attacks . | . . . . . . . Combat Hostiles . | . . . . . . . Follow-up Attacks . | . . . . . . . Damage Inflicted 4046 | 323 612 310 1941 664 . 196 Guns 3546 | 323 612 310 1941 360 . . Cannons . | . . . . . . . Explosions 500 | . . . . 304 . 196 Melee . | . . . . . . . Ramming . | . . . . . . . Kinetic 1582 | 87 173 . 962 360 . . Thermal 1964 | 236 439 310 979 . . . Explosive 500 | . . . . 304 . 196 Electromagnetic . | . . . . . . . Impact . | . . . . . . . Slashing . | . . . . . . . Piercing . | . . . . . . . Highest Corruption 1 | . 1 1 1 1 1 1 Average Corruption 1 | . 1 1 1 1 1 1 Corruption Purged . | . . . . . . . Effects 21 | . 3 3 7 5 2 1 Message Errors 9 | . 1 2 2 2 1 1 Energy Discharges 6 | . 1 1 1 2 1 . Data Loss (minor) 3 | . 1 . 2 . . . Targeting Errors 2 | . . . 2 . . . Weapon Failures 1 | . . . . 1 . . Overload Shots . | . . . . . . . Overflow Damage 27 | . . . . 27 . . Projectiles . | . . . . . . . Explosions 27 | . . . . 27 . . Melee . | . . . . . . . Knockbacks . | . . . . . . . Impact . | . . . . . . . Kinetic . | . . . . . . . Secondary . | . . . . . . . Self-Inflicted Damage 20 | . . . . 20 . . Shots 1 | . . . . 1 . . Rammed . | . . . . . . . Targets Rammed . | . . . . . . . Kicked . | . . . . . . . Crushed . | . . . . . . . Highest Temperature 411 | 120 194 411 96 . . . Average Temperature 61 | 43 62 149 14 . . . Received Heat Transfer 1137 | . 213 153 690 81 . . Effects 2 | . . 2 . . . . Energy Bleed 1 | . . 1 . . . . Interference 1 | . . 1 . . . . Siege Activations . | . . . . . . . Robots Corrupted . | . . . . . . . Combat Hostiles . | . . . . . . . Parts Fried . | . . . . . . . Impact Corruptions . | . . . . . . . Robots Melted . | . . . . . . . Combat Hostiles . | . . . . . . . Parts Melted 9 | 1 3 2 3 . . . Heat Transferred 5297 | 703 1295 768 2531 . . . Parts Sabotaged . | . . . . . . . Parts Stolen . | . . . . . . . Parts Stripped . | . . . . . . . Power Chain Reactions . | . . . . . . . Missiles Intercepted . | . . . . . . . Alert | -11 -10 -10 -9 -9 -9 -8 ------- Run | Scr Mat Min Mat Min Exi Min Peak Influence 320 | 35 194 68 320 229 . 65 Initial 124 | . 22 6 19 124 . . Average 103 | 16 82 43 139 142 . . Maximum Alert Level 1 | . . . 1 1 . . Low Security (%) 82 | 100 100 100 67 67 . 100 Level 1 17 | . . . 32 32 . . Level 2 . | . . . . . . . Level 3 . | . . . . . . . Level 4 . | . . . . . . . Level 5 . | . . . . . . . High Security . | . . . . . . . Max Security . | . . . . . . . Squads Dispatched 7 | . 1 . 5 1 . . Investigation 3 | . 1 . 2 . . . Extermination . | . . . . . . . Reinforcement 3 | . . . 3 . . . Assault 1 | . . . . 1 . . Garrison . | . . . . . . . Intercept . | . . . . . . . Construction Impeded . | . . . . . . . Haulers Reinforced . | . . . . . . . Stealth | -11 -10 -10 -9 -9 -9 -8 --------- Run | Scr Mat Min Mat Min Exi Min Distress Signals 4 | . . . 4 . . . Communications Jammed . | . . . . . . . Distress Signals . | . . . . . . . Times Spotted 75 | . 17 4 38 9 . 7 Peak Tracking Total 7 | . 4 2 5 4 . 7 Tactical Retreats 4 | . . . 4 . . . Traps | -11 -10 -10 -9 -9 -9 -8 ------- Run | Scr Mat Min Mat Min Exi Min Traps Triggered 2 | . 1 . 1 . . . Indirectly . | . . . . . . . Trap Hack Attempts . | . . . . . . . Triggered . | . . . . . . . Disarmed . | . . . . . . . Reprogrammed . | . . . . . . . Reused . | . . . . . . . Traps Extracted . | . . . . . . . Installed . | . . . . . . . Triggered . | . . . . . . . Machines | -11 -10 -10 -9 -9 -9 -8 ---------- Run | Scr Mat Min Mat Min Exi Min Machines Disabled . | . . . . . . . Max in Single Turn . | . . . . . . . Machines Sabotaged . | . . . . . . . Garrisons Compromised . | . . . . . . . Overloaded Fab Kills . | . . . . . . . Fab Network Shutdowns . | . . . . . . . Hacking | -11 -10 -10 -9 -9 -9 -8 --------- Run | Scr Mat Min Mat Min Exi Min Machines Accessed 17 | . 4 1 10 1 1 . Terminals 10 | . 2 1 7 . . . Fabricators . | . . . . . . . Repair Stations 3 | . 1 . 2 . . . Recycling Units 2 | . 1 . 1 . . . Scanalyzers . | . . . . . . . Garrison Access . | . . . . . . . Total Hacks 44 | . 12 3 27 1 1 . Successful 22 | . 5 2 13 1 1 . Failed 22 | . 7 1 14 . . . Catastrophic 1 | . 1 . . . . . Database Lockouts . | . . . . . . . Manual 28 | . 7 3 18 . . . Terminals 31 | . 6 3 22 . . . Fabricators . | . . . . . . . Repair Stations 9 | . 5 . 4 . . . Recycling Units 2 | . 1 . 1 . . . Scanalyzers . | . . . . . . . Garrison Access . | . . . . . . . Terminal Hacks 6 | . . 2 2 1 1 . Record 1 | . . . . . 1 . Part Schematic 2 | . . 2 . . . . Open Door 1 | . . . . 1 . . Branch Access Points 1 | . . . 1 . . . Recall Investigation 1 | . . . 1 . . . Fabricator Hacks . | . . . . . . . Repair Station Hacks 7 | . 3 . 4 . . . Scan Component 3 | . 1 . 2 . . . Repair 3 | . 1 . 2 . . . Refit 1 | . 1 . . . . . Recycling Unit Hacks . | . . . . . . . Scanalyzer . | . . . . . . . Garrison Access Hacks . | . . . . . . . Unauthorized Hacks 9 | . 2 . 7 . . . Terminals 7 | . 1 . 6 . . . Track 2 | . . . 2 . . . Assimilate 1 | . . . 1 . . . Botnet 3 | . 1 . 2 . . . Operators 1 | . . . 1 . . . Fabricators . | . . . . . . . Repair Stations . | . . . . . . . Recycling Units 2 | . 1 . 1 . . . Tunnel 2 | . 1 . 1 . . . Scanalyzers . | . . . . . . . Garrison Access . | . . . . . . . Data Cores Recovered . | . . . . . . . Used . | . . . . . . . Hacking Detections 12 | . 3 1 8 . . . Full Trace Events 2 | . . 1 1 . . . Feedback Events . | . . . . . . . Feedback Blocked . | . . . . . . . Robot Schematics Acquired . | . . . . . . . Robots Built . | . . . . . . . Matter . | . . . . . . . Time . | . . . . . . . Total Robot Build Rating . | . . . . . . . Part Schematics Acquired 2 | . . 2 . . . . Parts Built . | . . . . . . . Matter . | . . . . . . . Time . | . . . . . . . Total Part Build Rating . | . . . . . . . Parts Repaired 3 | . 1 . 2 . . . Time 78 | . 26 . 52 . . . Parts Recycled . | . . . . . . . Recycled Matter . | . . . . . . . Retrieved Matter . | . . . . . . . Retrieved Components . | . . . . . . . Parts Scanalyzed . | . . . . . . . Part Schematics Acquired . | . . . . . . . Parts Damaged . | . . . . . . . Bothacking | -11 -10 -10 -9 -9 -9 -8 ------------ Run | Scr Mat Min Mat Min Exi Min Used RIF Installer . | . . . . . . . Robots Hacked . | . . . . . . . Non-combat . | . . . . . . . Combat . | . . . . . . . Robot Hacks Applied . | . . . . . . . Relay Couplers Released . | . . . . . . . Robots Rewired . | . . . . . . . Allies Hacked . | . . . . . . . Hacks Repelled . | . . . . . . . Allies | -11 -10 -10 -9 -9 -9 -8 -------- Run | Scr Mat Min Mat Min Exi Min Total Allies 1 | . . . . 1 . . Largest Group 1 | . . . . 1 1 1 Highest-Rated Group 31 | . . . . 31 31 31 Highest-Rated Ally 31 | . . . . 31 31 31 Total Orders . | . . . . . . . Ally Attacks 1 | . . . . . . 1 Total Damage 21 | . . . . . . 21 Kills . | . . . . . . . Allies Corrupted . | . . . . . . . Allies Melted . | . . . . . . . Intel | -11 -10 -10 -9 -9 -9 -8 ------- Run | Scr Mat Min Mat Min Exi Min Robot Analysis Total . | . . . . . . . Derelict Logs Recovered 2 | . . 2 . . . . Drone Launches . | . . . . . . . Drone Recoveries . | . . . . . . . Exploration | -11 -10 -10 -9 -9 -9 -8 ------------- Run | Scr Mat Min Mat Min Exi Min Turns Passed 4785 | 159 945 771 1885 595 317 113 Spaces Moved 2183 | 71 466 397 743 289 163 54 Core . | . . . . . . . Treads 2106 | . 460 397 743 289 163 54 Legs 77 | 71 6 . . . . . Wheels . | . . . . . . . Hover . | . . . . . . . Flight . | . . . . . . . Fastest Speed 120 | 120 120 160 160 160 180 200 Average Speed 174 | 120 160 179 179 179 190 200 Slowest Speed 220 | 120 180 180 180 180 220 200 Overloaded Moves . | . . . . . . . Propulsion Burnouts . | . . . . . . . Robots Hopped . | . . . . . . . Cave-ins Triggered . | . . . . . . . Exploration Rate (%) 52 | 5 62 97 76 49 52 23 Regions Visited 6 Branch Regions 4 Pre-discovered Areas 4 | . 1 1 1 . 1 . Known Exits Taken 1 | . . . 1 . . . Unknown Exits Taken 5 | 1 1 1 . 1 1 . Scrap Searched 2 | . . 1 . 1 . . Spaces Dug 1 | . . . 1 . . . Terrain Destroyed 39 | . . . 2 20 . 17 Melee . | . . . . . . . Projectile 2 | . . . 2 . . . AOE 37 | . . . . 20 . 17 Terrain Rammed . | . . . . . . . Walls Destroyed . | . . . . . . . Machines Disabled . | . . . . . . . Actions | -11 -10 -10 -9 -9 -9 -8 --------- Run | Scr Mat Min Mat Min Exi Min Total 2778 | 97 602 433 1087 332 170 57 Wait 223 | . 55 9 155 4 . . Move 2177 | 70 465 396 742 288 162 54 Hop . | . . . . . . . Pick Up 50 | . 19 5 20 5 1 . Fast Attach 16 | 1 4 1 5 2 3 . Attach 20 | . 2 2 13 3 . . Detach 6 | . 3 1 . . 2 . Swap 25 | . 2 1 15 6 . 1 Drop 46 | . 13 4 21 6 2 . Fire 215 | 26 39 14 116 18 . 2 Melee . | . . . . . . . Ram . | . . . . . . . Kick . | . . . . . . . Crush . | . . . . . . . Escape Stasis . | . . . . . . . Rewire . | . . . . . . . Trap . | . . . . . . . Miscellaneous . | . . . . . . . Route ------- -11/Scrapyard -10/Materials (discovered 2 exits: *Mat / *Min) -10/Mines (discovered 2 exits: *Mat x2) -9/Materials (discovered 3 exits: [*Mat x2] / *Min) -9/Mines (discovered 2 exits: [*Mat] / *Exi) -9/Exiles -8/Mines History --------- Turn | Location | Event 24 | -11/Scrapyard | Discovered new exit (range 3) 160 | -11/Scrapyard | Entered Materials 305 | -10/Materials | Build established: Mutant 601 | -10/Materials | Repaired Med. Laser 647 | -10/Materials | Discovered new exit (range 15) 916 | -10/Materials | Discovered new exit (range 13) 1105 | -10/Materials | Entered Mines 1120 | -10/Mines | Learned Materials emergency access door positions 1155 | -10/Mines | Discovered new exit (range 5) 1233 | -10/Mines | Learned location of Storage (-7) 1759 | -10/Mines | Discovered new exit (range 10) 1851 | -10/Mines | Received a Rocket Launcher from a helpful Derelict 1876 | -10/Mines | Entered Materials 1876 | -9/Materials | Evolved 2 slots: Utility x2 2166 | -9/Materials | Repaired Lgt. Treads? 2220 | -9/Materials | Discovered new exit (range 4) 2717 | -9/Materials | Build established: Scavenger-Mutant 2883 | -9/Materials | Lost 3 parts (1n1u1w) 2886 | -9/Materials | Identified exit to Mines 2895 | -9/Materials | Discovered new exit (range 16) 2981 | -9/Materials | Repaired Lgt. Treads 3047 | -9/Materials | Core integrity fell below 50% 3761 | -9/Materials | Entered Mines 3784 | -9/Mines | Core integrity fell below 20% 3823 | -9/Mines | Lost 4 parts (1p1n1u1w) 4042 | -9/Mines | Discovered new exit (range 9) 4059 | -9/Mines | Found the Drone Emporium 4068 | -9/Mines | Found Prototype Device 4117 | -9/Mines | Deemed a non-threat by the Exiles lab entrance 4117 | -9/Mines | Discovered new exit (range 5) 4260 | -9/Mines | Met a Derelict testing a Signal Generator 4264 | -9/Mines | Assembled infested the area 4269 | -9/Mines | Assisted by a Guerilla fighting off Assembled 4356 | -9/Mines | Entered Exiles 4356 | -9/Exiles | Accompanied by 1 ally 4401 | -9/Exiles | Met 8R-AWN 4430 | -9/Exiles | Met EX-HEX 4545 | -9/Exiles | Met EX-DEC 4579 | -9/Exiles | Learned location of Zion (-6) 4651 | -9/Exiles | Discovered new exit (range 14) 4673 | -9/Exiles | Entered Mines 4673 | -8/Mines | Accompanied by 1 ally 4786 | -8/Mines | Destroyed by S-10 Pest with Light Assault Rifle Last Messages --------------- 04512_ Acquired Core Shielding. 04515_ Acquired Imp. Heat Sink. EX-DEC: Ah I see we have a visitor. One wrong move in here and I'll invert your atomic chain! 04547_ EX-DEC: "Oops, I hope HEX didn't hear that..." 04579_ Connecting with EX-Message Board... 04579_ Current location identified: Exiles >>Record "MSG001714-01*" PINNED - TO ALL TESTERS: Stay away from Zion. Imprinter means us harm and is serious about it. World map updated: -6/Zion. 04651_ EXIT=FOUND LOCATION=UNKNOWN GOAL=ESCAPE 04687_ K-01 Serf collects debris. 04695_ > 04780_ S-10 Pest unfolds itself. 04783_ 3P-WBW(g) destroyed. 04785_ S-10 Pest destroyed. Map ----- +----------------------------------------------------+ | ???# ##########????????????????????? | | ??## ##????????????????????????????? | | ?## ##???????????????##??????????? | | ## ##?????????????# ##?????????? | | ####?????????# #?????????? | | """ ##???????# #?????????? | | ## """ ######## ##????????? | | #?## """ #????????? | | ???# #????????? | | ???## ###### #????????? | | ????# #???## #######????????? | | ???# ##??## ##??????????????? | | ???# ##???# ##????##????????? | | ???# ###????# ##??? ????????? | | ???## #??????## #??? ????????? | | ????###??????## #??? #????????? | | ?????????????# ##??? ##???????? | | ?????????????# ###??## ##??????? | | ?????????????# ##????# #??????? | | ?????????????## #????## #??????? | | ??????????????## #???## #???????? | | ???????????????## ##?## #???????? | | ????????????????# ### #???????? | | ????????????# ### r #????????? | | ????????????# #?????????? | | ????????????# #### @##????????? | | ?????????????????## ##???????? | | ??????????????????# ##??????? | | ??????????????????## #??????? | | ???????????????????### =%! #??????? | | ????????????????????? = #??????? | | ????????????????????# ##??????? | | ????????????????????# ##???????? | | ???????????????????? #????????? | | ???????????????????## *= #????????? | | ????????????????????# %[ ##????????? | | ????????????????????## s% ??????????? | | ?????????????????????## * ??????????? | | ??????????????????????# s ??????????? | | ?????????????????????? s ??????????? | | ?????????????????????? ??????????? | | ?????????????????????? ??????????? | | ?????????????????????? ??????????? | | ?????????????????????? ??????????? | | ?????????????????????? ???????????? | | ????????????????????????????????????? | | ????????????????????????????????????? | | ????????????????????????????????????? | | ????????????????????????????????????? | | ????????????????????????????????????? | +----------------------------------------------------+ Best States ------------- Heat Dissipation 42 Energy Generation 12 Energy Capacity 265 Matter Stores 350 Matter Capacity 350 Sight Range 16 Terrain Scan Density 10 Armor Coverage 150 Core Shielding 20 Evasion (%) 40 Recoil Reduction 2 Item Schematics ----------------- Hcp. Storage Unit | -10/Mines | Hacked Lrg. Storage Unit | -10/Mines | Hacked Robot Schematics ------------------ None Fabricated ------------ Nothing Alien Tech Used ----------------- None Achievements -------------- None Challenges ------------ None Game ------ Seed TrapStasisModule Manual? 0 Play Time 00:29:48 Cumulative 60.8 hours Start 2020.11.03 @ 13:35:06 End 2020.11.03 @ 14:04:48 Sessions 1 Manual Loads 0 Difficulty Rogue Special Mode None Game No. 54 Rogue 54 Adventurer 0 Explorer 0 Win Type - Total 0 Types 0/0/0/0/0/0/0/0/0 Lore% 43 Gallery% 49 Achievement% 50 Wizard Run 0 Options --------- ASCII 0 Keyboard 1 Movement Numpad Keybinds 0 Fullscreen 1 Font 12/Terminus Map View 83x54 Tactical HUD 1 Map Filters NONE Filters NONE Steam 1 RUN: 8caabde9-3f2f-4486-9b41-77be67f3eca1